fUSD/lending_fUSD_20251220
["ID","MTS","AMOUNT","RATE_DAILY","PERIOD"]
[399295132,1766249442107,-150.0,0.00015606,2]
[399295133,1766249442118,-150.0,0.00015611,2]
[399295134,1766249442129,-150.0,0.00015611,2]
[399295135,1766249442150,-150.0,0.00015627,2]
[399295136,1766249442170,-150.0,0.00015627,2]
[399295137,1766249442184,-150.0,0.00015627,2]
[399295138,1766249442194,-150.0,0.00015637,2]
[399295139,1766249442203,-1906.38,0.00015643,2]
[399295140,1766249442212,-150.0,0.00015652,2]
[399295141,1766249442222,-150.0,0.00015687,2]
[399295142,1766249442231,-150.0,0.00015687,2]
[399295143,1766249442240,-659.0,0.00015691,2]
[399295144,1766249442249,-150.0,0.00015692,2]
[399295145,1766249442260,-150.0,0.00015692,2]
[399295146,1766249442269,-150.0,0.00015695,2]
[399295147,1766249442279,-150.0,0.00015712,2]
[399295148,1766249442288,-150.0,0.00015712,2]
[399295149,1766249442297,-150.0,0.00015737,2]
[399295150,1766249442306,-153.20553774,0.00015756,2]
[399295151,1766249442316,-731.0,0.00015761,2]
[399295152,1766249442327,-150.0,0.00015763,2]
[399295153,1766249442336,-150.0,0.00015773,2]
[399295154,1766249442346,-150.0,0.00015773,2]
[399295155,1766249442356,-150.0,0.00015773,2]
[399295156,1766249442365,-150.0,0.00015787,2]
[399295157,1766249442374,-150.0,0.00015787,2]
[399295158,1766249442383,-15231.72780846,0.000158,2]
[399295159,1766249442393,-150.0,0.00015818,2]
[399295160,1766249442402,-150.0,0.00015831,2]
[399295161,1766249442412,-150.0,0.00015837,2]
[399295162,1766249442421,-150.0,0.00015854,2]
[399295163,1766249442431,-150.0,0.00015854,2]
[399295164,1766249442440,-150.0,0.00015854,2]
[399295165,1766249442449,-659.0,0.00015857,2]
[399295166,1766249442458,-150.0,0.00015887,2]
[399295167,1766249442467,-150.0,0.00015887,2]
[399295168,1766249442476,-150.0,0.00015894,2]
[399295169,1766249442485,-150.0,0.00015899,2]
[399295170,1766249442494,-12288.85489731,0.00015909,2]
[399295171,1766249442503,-150.0,0.00015925,2]
[399295172,1766249442512,-150.0,0.00015935,2]
[399295173,1766249442521,-150.0,0.00015935,2]
[399295174,1766249442531,-150.0,0.00015937,2]
[399295175,1766249442540,-150.0,0.00015967,2]
[399295176,1766249442549,-150.0,0.00015967,2]
[399295177,1766249442559,-150.0,0.00015967,2]
[399295178,1766249442568,-150.0,0.00015987,2]
[399295179,1766249442578,-150.0,0.00015987,2]
[399295180,1766249442587,-150.0,0.00016016,2]
[399295181,1766249442597,-150.0,0.00016016,2]
[399295182,1766249442605,-150.0,0.00016016,2]
[399295184,1766249442615,-150.0,0.00016031,2]
[399295185,1766249442624,-200.0,0.00016035,2]
[399295186,1766249442632,-207.4,0.00016035,2]
[399295187,1766249442642,-157.57578229,0.00016035,2]
[399295188,1766249442653,-300.0,0.00016035,2]
[399295189,1766249442662,-150.0,0.00016035,2]
[399295190,1766249442671,-150.0,0.00016037,2]
[399295192,1766249442680,-150.0,0.00016087,2]
[399295194,1766249442690,-150.0,0.00016087,2]
[399295196,1766249442699,-150.0,0.00016097,2]
[399295197,1766249442708,-150.0,0.00016097,2]
[399295198,1766249442720,-168.0,0.000161,2]
[399295199,1766249442730,-166.67,0.000161,2]
[399295200,1766249442743,-150.0,0.00016103,2]
[399295201,1766249442754,-1167.11,0.00016116,2]
[399295202,1766249442764,-918.0,0.00016119,2]
[399295203,1766249442775,-150.0,0.00016137,2]
[399295205,1766249442792,-150.0,0.00016137,2]
[399295207,1766249442802,-150.0,0.00016137,2]
[399295208,1766249442812,-150.0,0.00016137,2]
[399295209,1766249442822,-15231.72780846,0.00016166,2]
[399295210,1766249442832,-150.0,0.00016171,2]
[399295211,1766249442842,-168.0,0.00016174,2]
[399295212,1766249442852,-150.0,0.00016177,2]
[399295213,1766249442861,-150.0,0.00016177,2]
[399295214,1766249442873,-500.0,0.00016182,2]
[399295215,1766249442883,-500.0,0.00016182,2]
[399295216,1766249442892,-500.0,0.00016182,2]
[399295217,1766249442903,-150.0,0.00016187,2]
[399295218,1766249442912,-150.0,0.00016187,2]
[399295219,1766249442922,-150.0,0.00016237,2]
[399295220,1766249442932,-150.0,0.00016239,2]
[399295221,1766249442941,-12288.85489731,0.00016239,2]
[399295222,1766249442950,-150.0,0.00016243,2]
[399295223,1766249442960,-150.0,0.00016258,2]
[399295224,1766249442969,-150.0,0.00016258,2]
[399295225,1766249442978,-150.0,0.00016258,2]
[399295226,1766249442987,-150.0,0.00016287,2]
[399295227,1766249442996,-150.0,0.00016287,2]
[399295228,1766249443005,-150.0,0.00016307,2]
[399295229,1766249443015,-150.0,0.00016307,2]
[399295230,1766249443024,-150.0,0.00016307,2]
[399295231,1766249443034,-1331.562,0.00016328,2]
[399295232,1766249443044,-615.844,0.00016328,2]
[399295233,1766249443053,-3455.0,0.00016328,2]
[399295234,1766249443064,-1647.057,0.00016328,2]
[399295235,1766249443074,-517.522,0.00016328,2]
[399295236,1766249443083,-911.0,0.00016328,2]
[399295237,1766249443093,-1197.0,0.00016328,2]
[399295238,1766249443102,-2428.0,0.00016328,2]
[399295239,1766249443111,-177.408,0.00016328,2]
[399295240,1766249443120,-4845.428,0.00016328,2]
[399295241,1766249443129,-564.0,0.00016328,2]
[399295242,1766249443138,-150.0,0.00016337,2]
[399295243,1766249443148,-150.0,0.00016339,2]
[399295244,1766249443157,-150.0,0.00016339,2]
[399295245,1766249443166,-150.0,0.00016349,2]
[399295246,1766249443175,-150.0,0.00016375,2]
[399295247,1766249443184,-150.0,0.0001638,2]
[399295248,1766249443193,-150.0,0.00016387,2]
[399295249,1766249443202,-150.0,0.00016387,2]
[399295250,1766249443211,-918.0,0.00016396,2]
[399295251,1766249443220,-150.0,0.0001642,2]
[399295252,1766249443229,-150.0,0.0001642,2]
[399295253,1766249443238,-150.0,0.0001642,2]
[399295254,1766249443247,-150.0,0.00016437,2]
[399295255,1766249443256,-9209.2,0.00016438,2]
[399295256,1766249443266,-500.0,0.00016438,2]
[399295257,1766249443275,-500.0,0.00016438,2]
[399295258,1766249443285,-500.0,0.00016438,2]
[399295259,1766249443294,-500.0,0.00016438,2]
[399295260,1766249443303,-500.0,0.00016438,2]
[399295261,1766249443312,-500.0,0.00016438,2]
[399295262,1766249443322,-500.0,0.00016438,2]
[399295263,1766249443331,-500.0,0.00016438,2]
[399295264,1766249443339,-500.0,0.00016438,2]
[399295265,1766249443349,-500.0,0.00016438,2]
[399295266,1766249443358,-500.0,0.00016438,2]
[399295267,1766249443367,-500.0,0.00016438,2]
[399295268,1766249443377,-500.0,0.00016438,2]
[399295269,1766249443387,-627.60424824,0.00016438,2]
[399295270,1766249443398,-10734.38,0.00016438,2]
[399295271,1766249443407,-235.76832595,0.00016438,2]
[399295272,1766249443417,-178.41,0.00016438,2]
[399295273,1766249443430,-178.41,0.00016438,2]
[399295274,1766249443440,-178.41,0.00016438,2]
[399295275,1766249443451,-178.41,0.00016438,2]
[399295276,1766249443460,-178.41,0.00016438,2]
[399295277,1766249443469,-177.67,0.00016438,2]
[399295278,1766249443479,-150.0,0.00016443,2]
[399295279,1766249443489,-150.0,0.00016455,2]
[399295280,1766249443499,-150.0,0.00016487,2]
[399295281,1766249443509,-150.0,0.00016487,2]
[399295282,1766249443519,-150.0,0.00016501,2]
[399295283,1766249443530,-150.0,0.00016501,2]
[399295284,1766249443539,-150.0,0.00016501,2]
[399295285,1766249443548,-150.0,0.00016511,2]
[399295286,1766249443559,-15231.72780846,0.00016533,2]
[399295287,1766249443568,-150.0,0.00016537,2]
[399295288,1766249443578,-150.0,0.00016562,2]
[399295289,1766249443587,-150.0,0.00016562,2]
[399295290,1766249443596,-12288.85489731,0.0001657,2]
[399295291,1766249443610,-150.0,0.00016579,2]
[399295292,1766249443632,-918.0,0.0001658,2]
[399295293,1766249443642,-150.0,0.00016582,2]
[399295294,1766249443652,-150.0,0.00016582,2]
[399295295,1766249443661,-467.58230881,0.00016585,2]
[399295296,1766249443671,-1074.5317107,0.00016585,2]
[399295297,1766249443681,-150.0,0.00016587,2]
[399295298,1766249443691,-150.0,0.00016587,2]
[399295299,1766249443701,-1000.0,0.00016588,2]
[399295300,1766249443712,-150.0,0.00016622,2]
[399295301,1766249443722,-150.0,0.00016637,2]
[399295302,1766249443733,-150.0,0.00016647,2]
[399295303,1766249443743,-150.0,0.00016647,2]
[399295304,1766249443752,-150.0,0.00016647,2]
[399295305,1766249443762,-10333.35358582,0.0001666,2]
[399295306,1766249443772,-150.0,0.00016663,2]
[399295307,1766249443782,-150.0,0.00016663,2]
[399295308,1766249443793,-150.0,0.00016668,2]
[399295309,1766249443802,-150.0,0.00016687,2]
[399295310,1766249443811,-150.0,0.00016687,2]
[399295311,1766249443820,-1600.0,0.00016691,2]
[399295312,1766249443829,-4000.0,0.00016712,2]
[399295313,1766249443840,-150.0,0.00016715,2]
[399295314,1766249443849,-150.0,0.00016737,2]
[399295315,1766249443859,-150.0,0.00016744,2]
[399295316,1766249443868,-150.0,0.00016744,2]
[399295317,1766249443877,-150.0,0.00016744,2]
[399295318,1766249443886,-150.0,0.00016774,2]
[399295319,1766249443895,-150.0,0.00016782,2]
[399295320,1766249443904,-150.0,0.00016786,2]
[399295321,1766249443913,-150.0,0.00016786,2]
[399295322,1766249443922,-1477.0,0.000168,2]
[399295323,1766249443931,-738.0,0.00016806,2]
[399295324,1766249443940,-150.0,0.00016825,2]
[399295325,1766249443950,-150.0,0.00016825,2]
[399295326,1766249443959,-150.0,0.00016836,2]
[399295327,1766249443971,-150.0,0.0001685,2]
[399295328,1766249443979,-918.0,0.0001686,2]
[399295329,1766249443988,-1194.29389268,0.00016864,5]
[399295330,1766249443997,-200.0,0.00016864,2]
[399295331,1766249444006,-630.0,0.00016864,2]
[399295332,1766249444015,-500.0,0.00016864,2]
[399295333,1766249444024,-150.0,0.00016865,2]
[399295334,1766249444033,-439675.1250872,0.00016865,2]
[399295335,1766249444042,-25727.2659503,0.00016865,2]
[399295336,1766249444051,-2835.1250085,0.00016865,2]
[399295337,1766249444060,-94267.6506361,0.00016865,2]
[399295338,1766249444073,-150.0,0.0001688,2]
[399295339,1766249444083,-150.0,0.00016886,2]
[399295340,1766249444092,-150.0,0.00016886,2]
[399295341,1766249444102,-10000.0,0.000169,2]
[399295342,1766249444111,-12288.85489731,0.000169,2]
[399295343,1766249444120,-3121.18198867,0.000169,2]
[399295344,1766249444129,-343.46387208,0.000169,2]
[399295345,1766249444140,-186.21416739,0.000169,2]
[399295346,1766249444149,-15231.72780846,0.000169,2]
[399295347,1766249444158,-853.46645514,0.000169,2]
[399295348,1766249444168,-692.97788872,0.000169,2]
[399295349,1766249444177,-7587.0,0.000169,2]
[399295350,1766249444187,-150.0,0.00016905,2]
[399295351,1766249444196,-150.0,0.00016905,2]
[399295352,1766249444206,-150.0,0.00016918,2]
[399295353,1766249444215,-150.0,0.00016936,2]
[399295354,1766249444224,-500.0,0.0001697,2]
[399295355,1766249444234,-598.95449494,0.0001697,2]
[399295356,1766249444243,-500.0,0.00016973,2]
[399295357,1766249444253,-162.03877535,0.00016973,2]
[399295358,1766249444262,-500.0,0.00016973,2]
[399295359,1766249444272,-160.176,0.00016973,2]
[399295360,1766249444281,-198.63978603,0.00016973,2]
[399295361,1766249444290,-500.0,0.00016973,2]
[399295362,1766249444299,-500.0,0.00016973,2]
[399295363,1766249444309,-159.43095819,0.00016973,2]
[399295364,1766249444318,-500.0,0.00016973,2]
[399295365,1766249444327,-217.8076658,0.00016983,2]
[399295366,1766249444336,-500.0,0.00016983,2]
[399295367,1766249444345,-3869.93544157,0.00016986,2]
[399295368,1766249444354,-150.00000001,0.00016986,2]
[399295369,1766249444363,-150.00000001,0.00016986,2]
[399295370,1766249444373,-150.0,0.00016986,2]
[399295371,1766249444383,-150.0,0.00016986,2]
[399295372,1766249444392,-150.0,0.00016986,2]
[399295373,1766249444402,-150.00000001,0.00016986,2]
[399295374,1766249444411,-150.0,0.00016986,2]
[399295375,1766249444421,-150.0,0.00016986,2]
[399295376,1766249444430,-150.0,0.00016986,2]
[399295377,1766249444439,-150.0,0.00016986,2]
[399295378,1766249444449,-150.0,0.00016986,2]
[399295379,1766249444458,-877.94679186,0.0001699,2]
[399295380,1766249444468,-877.94679186,0.0001699,2]
[399295381,1766249444477,-500.0,0.00016999,2]
[399295382,1766249444487,-500.0,0.00016999,2]
[399295383,1766249444497,-500.0,0.00016999,2]
[399295384,1766249444506,-500.0,0.00016999,2]
[399295385,1766249444515,-500.0,0.00016999,2]
[399295386,1766249444525,-500.0,0.00016999,2]
[399295387,1766249444534,-500.0,0.00016999,2]
[399295388,1766249444544,-500.0,0.00016999,2]
[399295389,1766249444553,-500.0,0.00016999,2]
[399295390,1766249444563,-500.0,0.00016999,2]
[399295391,1766249444572,-500.0,0.00016999,2]
[399295392,1766249444581,-500.0,0.00016999,2]
[399295393,1766249444591,-500.0,0.00016999,2]
[399295394,1766249444600,-500.0,0.00016999,2]
[399295395,1766249444610,-500.0,0.00016999,2]
[399295396,1766249444619,-500.0,0.00016999,2]
[399295397,1766249444628,-150.0,0.00016999,2]
[399295398,1766249444638,-3764536.92483931,0.00017,2]
[399295399,1766249444787,-64609.79429862,0.00017,2]
[399295400,1766249444907,-6528.0,0.00016328,2]
[399295401,1766249444917,-15598.22344994,0.00017,2]
[399295402,1766249444936,-750765.19899954,0.00017,2]
[399295403,1766249444958,-379.46485639,0.00017,2]
[399295407,1766249460784,500.0,0.00042912,120]
[399295411,1766249762225,500.0,0.00042912,120]
[399295412,1766249798638,318.04,0.00042912,120]
[399295413,1766249802645,184.0,0.00042912,30]
[399295414,1766249846482,2100.74841066,0.00042912,120]
[399295416,1766249926692,10674.20725927,0.00013498,10]
[399295417,1766249926716,20558.2274827,0.00013498,10]
[399295418,1766249967993,4161.46,0.00042901,120]
[399295423,1766250060954,500.0,0.00042901,120]
[399295426,1766250142332,1874.89,0.00042901,120]
[399295428,1766250170105,169.64,0.00042901,30]
[399295429,1766250361806,500.0,0.000429,120]
[399295432,1766250426986,442.81,6.971e-05,2]
[399295433,1766250427213,442.81,7.338e-05,2]
[399295434,1766250427423,442.81,7.705e-05,2]
[399295435,1766250427631,442.81,8.072e-05,2]
[399295436,1766250427835,442.81,8.439e-05,2]
[399295437,1766250428043,442.81,8.805e-05,2]
[399295438,1766250428230,442.81,9.172e-05,2]
[399295439,1766250428431,442.81,9.539e-05,2]
[399295440,1766250428644,442.81,9.906e-05,2]
[399295441,1766250428933,442.81,0.00010273,2]
[399295442,1766250474211,15096.67,0.000429,120]
[399295455,1766250631913,-237.0,0.0001064,2]
[399295457,1766250631923,-442.81,0.0001064,2]
[399295458,1766250631937,-442.81,0.00011007,2]
[399295459,1766250631946,-351.82377077,0.00011374,2]
[399295460,1766250631958,-90.98622923,0.00011374,2]
[399295461,1766250631968,-250.0,0.00011704,2]
[399295462,1766250631979,-195.0,0.00011704,2]
[399295463,1766250631989,-442.81,0.00011741,2]
[399295464,1766250631999,-442.81,0.00012108,2]
[399295465,1766250632009,-442.81,0.00012475,2]
[399295466,1766250632019,-1813.63,0.00012688,2]
[399295467,1766250632029,-442.81,0.00012841,2]
[399295468,1766250632039,-442.81,0.00013208,2]
[399295469,1766250632050,-177.2954573,0.00013253,2]
[399295470,1766250632060,-653.262,0.00013253,2]
[399295471,1766250632070,-250.0,0.00013269,2]
[399295473,1766250632080,-1200.0,0.00013322,2]
[399295475,1766250632089,-869.51093123,0.00013323,2]
[399295476,1766250632099,-300.0,0.00013421,2]
[399295477,1766250632109,-287.0,0.00013421,2]
[399295478,1766250632119,-6684.38427549,0.00013422,2]
[399295480,1766250632134,-2204.42030992,0.00013422,2]
[399295483,1766250632146,-908.8525,0.00013422,2]
[399295485,1766250632157,-271.00000022,0.00013422,2]
[399295494,1766250637930,-191563.77968469,0.00013422,2]
[399295495,1766250637984,-935.58169634,0.00013422,2]
[399295496,1766250638036,-871.643,0.00013422,2]
[399295497,1766250638048,-393.69097478,0.00013422,2]
[399295501,1766250640070,-289.914201,0.00013422,2]
[399295502,1766250640329,-795876.73335756,0.00013422,2]
[399295503,1766250640339,-1000.0,0.00013423,2]
[399295504,1766250640349,-10078.3607,0.00013423,2]
[399295505,1766250640359,-237.3687377,0.00013475,2]
[399295506,1766250640368,-13708.55502765,0.00013498,2]
[399295507,1766250640378,-27591.04624507,0.00013522,2]
[399295508,1766250640387,-442.81,0.00013575,2]
[399295509,1766250640397,-500.0,0.00013698,2]
[399295510,1766250640406,-500.0,0.00013698,2]
[399295511,1766250640416,-500.0,0.00013698,2]
[399295512,1766250640425,-500.0,0.00013698,2]
[399295513,1766250640435,-286.12837513,0.00013698,2]
[399295514,1766250640445,-500.0,0.00013698,2]
[399295515,1766250640454,-500.0,0.00013698,2]
[399295516,1766250640464,-500.0,0.00013698,2]
[399295517,1766250640474,-500.0,0.00013698,2]
[399295518,1766250640483,-500.0,0.00013698,2]
[399295520,1766250640493,-500.0,0.00013698,2]
[399295521,1766250640502,-500.0,0.00013698,2]
[399295522,1766250640512,-500.0,0.00013698,2]
[399295523,1766250640522,-500.0,0.00013698,2]
[399295524,1766250640531,-500.0,0.00013698,2]
[399295525,1766250640540,-500.0,0.00013698,2]
[399295527,1766250640549,-500.0,0.00013698,2]
[399295529,1766250640558,-500.0,0.00013698,2]
[399295530,1766250640569,-582.27761239,0.00013698,2]
[399295531,1766250640582,-500.0,0.00013698,2]
[399295532,1766250640591,-500.0,0.00013698,2]
[399295533,1766250640601,-500.0,0.00013698,2]
[399295534,1766250640610,-500.0,0.00013698,2]
[399295535,1766250640620,-500.0,0.00013698,2]
[399295536,1766250640629,-491.39149488,0.00013698,2]
[399295537,1766250640640,-500.0,0.00013698,2]
[399295538,1766250640651,-500.0,0.00013698,2]
[399295539,1766250640662,-500.0,0.00013698,2]
[399295540,1766250640673,-500.0,0.00013698,2]
[399295541,1766250640683,-500.0,0.00013698,2]
[399295542,1766250640692,-443.74,0.00013698,2]
[399295543,1766250640702,-500.0,0.00013698,2]
[399295544,1766250640711,-500.0,0.00013698,2]
[399295545,1766250640720,-500.0,0.00013698,2]
[399295546,1766250640730,-500.0,0.00013698,2]
[399295547,1766250640740,-500.0,0.00013698,2]
[399295548,1766250640749,-487.49534907,0.00013698,2]
[399295550,1766250640759,-500.0,0.00013698,2]
[399295552,1766250640768,-500.0,0.00013698,2]
[399295553,1766250640777,-500.0,0.00013698,2]
[399295554,1766250640785,-500.0,0.00013698,2]
[399295555,1766250640794,-500.0,0.00013698,2]
[399295556,1766250640802,-500.0,0.00013698,2]
[399295557,1766250640810,-500.0,0.00013698,2]
[399295558,1766250640819,-500.0,0.00013698,2]
[399295559,1766250640828,-1000.0,0.00013699,2]
[399295560,1766250640841,-500.0,0.00013699,2]
[399295561,1766250640851,-500.0,0.00013699,2]
[399295562,1766250640861,-500.0,0.00013723,2]
[399295563,1766250640870,-500.0,0.00013723,2]
[399295564,1766250640881,-500.0,0.00013723,2]
[399295565,1766250640890,-500.0,0.00013723,2]
[399295566,1766250640900,-500.0,0.00013723,2]
[399295567,1766250640910,-500.0,0.00013723,2]
[399295568,1766250640922,-500.0,0.00013723,2]
[399295569,1766250640931,-500.0,0.00013723,2]
[399295570,1766250640941,-500.0,0.00013723,2]
[399295571,1766250640950,-500.0,0.00013723,2]
[399295572,1766250640959,-500.0,0.00013723,2]
[399295573,1766250640971,-500.0,0.00013723,2]
[399295574,1766250640981,-500.0,0.00013723,2]
[399295575,1766250640990,-500.0,0.00013723,2]
[399295576,1766250640999,-260.33789622,0.00013723,2]
[399295577,1766250641009,-500.0,0.00013723,2]
[399295578,1766250641020,-509.67980687,0.00013723,2]
[399295579,1766250641031,-500.0,0.00013723,2]
[399295580,1766250641042,-13708.55502761,0.00013876,2]
[399295581,1766250641051,-442.81,0.00013942,2]
[399295582,1766250641061,-443.74,0.00013972,2]
[399295583,1766250641070,-443.74,0.00014246,2]
[399295584,1766250641080,-13708.55502761,0.00014254,2]
[399295585,1766250641091,-7781.93292636,0.00014302,2]
[399295586,1766250641100,-733.1,0.00014504,2]
[399295587,1766250641110,-238.78,0.00014504,2]
[399295588,1766250641120,-10017.7644167,0.0001451,2]
[399295589,1766250641131,-443.74,0.0001452,2]
[399295590,1766250641142,-2500.0,0.00014578,2]
[399295591,1766250641151,-2500.0,0.00014578,2]
[399295592,1766250641161,-2500.0,0.00014578,2]
[399295593,1766250641170,-2500.0,0.00014578,2]
[399295594,1766250641180,-2500.0,0.00014578,2]
[399295595,1766250641189,-13708.55502761,0.00014632,2]
[399295596,1766250641198,-6152.8,0.0001464,2]
[399295597,1766250641207,-746.0,0.00014654,2]
[399295598,1766250641216,-7583.0,0.00014658,2]
[399295599,1766250641224,-420.0,0.00014712,2]
[399295600,1766250641234,-500.0,0.00014712,2]
[399295601,1766250641243,-443.76,0.00014794,2]
[399295602,1766250641254,-13708.55502761,0.0001501,2]
[399295603,1766250641264,-877.94679186,0.00015378,2]
[399295604,1766250641274,-13708.55502761,0.00015388,2]
[399295605,1766250641285,-500.0,0.00015513,2]
[399295606,1766250641295,-506.44561835,0.00015513,2]
[399295607,1766250641304,-500.0,0.00015642,2]
[399295608,1766250641313,-500.0,0.00015642,2]
[399295609,1766250641323,-4845.428,0.00015655,2]
[399295610,1766250641331,-2428.0,0.00015655,2]
[399295611,1766250641341,-150.0,0.00015677,2]
[399295612,1766250641350,-900.0,0.00015739,2]
[399295613,1766250641362,-153.20553774,0.00015756,2]
[399295614,1766250641372,-13708.55502761,0.00015766,2]
[399295615,1766250641381,-1167.11,0.00016116,2]
[399295616,1766250641391,-348.0,0.00016127,2]
[399295617,1766250641401,-13708.55502761,0.00016144,2]
[399295618,1766250641410,-200.0,0.00016149,2]
[399295619,1766250641421,-207.4,0.00016149,2]
[399295620,1766250641430,-157.57578229,0.00016149,2]
[399295621,1766250641440,-300.0,0.00016149,2]
[399295622,1766250641450,-649.0,0.00016243,2]
[399295623,1766250641460,-649.0,0.0001629,2]
[399295624,1766250641470,-3455.0,0.00016328,2]
[399295625,1766250641479,-1331.562,0.00016328,2]
[399295626,1766250641489,-615.844,0.00016328,2]
[399295627,1766250641498,-1647.057,0.00016328,2]
[399295628,1766250641507,-517.522,0.00016328,2]
[399295629,1766250641515,-911.0,0.00016328,2]
[399295630,1766250641524,-1197.0,0.00016328,2]
[399295631,1766250641534,-649.0,0.00016331,2]
[399295632,1766250641543,-649.0,0.00016373,2]
[399295633,1766250641552,-150.0,0.00016408,2]
[399295634,1766250641562,-9042.5,0.00016438,2]
[399295635,1766250641572,-500.0,0.00016438,2]
[399295636,1766250641582,-500.0,0.00016438,2]
[399295637,1766250641592,-500.0,0.00016438,2]
[399295638,1766250641602,-500.0,0.00016438,2]
[399295639,1766250641611,-500.0,0.00016438,2]
[399295640,1766250641621,-500.0,0.00016438,2]
[399295641,1766250641630,-500.0,0.00016438,2]
[399295642,1766250641639,-627.60424824,0.00016438,2]
[399295643,1766250641648,-500.0,0.00016438,2]
[399295644,1766250641658,-500.0,0.00016438,2]
[399295645,1766250641667,-500.0,0.00016438,2]
[399295646,1766250641676,-500.0,0.00016438,2]
[399295647,1766250641686,-500.0,0.00016438,2]
[399295648,1766250641695,-500.0,0.00016438,2]
[399295649,1766250641704,-235.76832595,0.00016438,2]
[399295650,1766250641714,-547.0,0.00016521,2]
[399295651,1766250641724,-13708.55502761,0.00016522,2]
[399295652,1766250641733,-1074.5317107,0.00016582,2]
[399295653,1766250641745,-649.0,0.00016618,2]
[399295654,1766250641754,-10333.35358582,0.0001666,2]
[399295655,1766250641763,-649.0,0.00016697,2]
[399295656,1766250641773,-323.66058424,0.000167,2]
[399295657,1766250641782,-677.0,0.00016705,2]
[399295658,1766250641791,-4000.0,0.00016712,2]
[399295659,1766250641801,-167.75,0.00016712,2]
[399295660,1766250641810,-649.0,0.0001673,2]
[399295661,1766250641820,-649.0,0.00016747,2]
[399295662,1766250641829,-649.0,0.00016754,2]
[399295663,1766250641839,-649.0,0.00016774,2]
[399295664,1766250641849,-649.0,0.00016842,2]
[399295665,1766250641859,-500.0,0.00016864,2]
[399295666,1766250641868,-500.0,0.00016864,2]
[399295667,1766250641879,-500.0,0.00016864,2]
[399295668,1766250641888,-500.0,0.00016864,2]
[399295669,1766250641899,-500.0,0.00016864,2]
[399295670,1766250641909,-200.0,0.00016864,2]
[399295671,1766250641918,-10000.0,0.00016886,2]
[399295672,1766250641927,-13708.55502761,0.000169,2]
[399295673,1766250641936,-3121.18198867,0.000169,2]
[399295674,1766250641946,-343.46387208,0.000169,2]
[399295675,1766250641955,-186.21416739,0.000169,2]
[399295676,1766250641963,-853.46645514,0.000169,2]
[399295677,1766250641973,-713.05096248,0.000169,2]
[399295678,1766250641982,-692.97788872,0.000169,2]
[399295679,1766250641991,-598.95449494,0.0001697,2]
[399295680,1766250642001,-677.0,0.00016971,2]
[399295681,1766250642010,-500.0,0.00016973,2]
[399295682,1766250642019,-500.0,0.00016973,2]
[399295683,1766250642028,-308.61264672,0.00016973,2]
[399295684,1766250642037,-500.0,0.00016973,2]
[399295685,1766250642047,-162.03877535,0.00016973,2]
[399295686,1766250642057,-160.176,0.00016973,2]
[399295687,1766250642067,-160.176,0.00016973,2]
[399295688,1766250642077,-395.24069311,0.00016973,2]